Category,9CCC - Level 9 Cost Centre Code,Service area,Service sub division,TVBC Service,9AC - Level 9 Account Code,Expense type,Detailed expense type,TVBC account code,Date Paid,Transaction Reference, Nett Value ,Supplier Name
CO,W900,Central Services to the Public,Management & Support Services,Environmental,4136,Supplies & Services,Communications & Computing,Communication Links,16/12/2021,359379,-2298.67,Virgin Media Payments Ltd
CO,W700,Environmental & Regulatory,Waste management,Environmental,3017,Transport Related Expenditure,Direct Transport Costs,Repair Materials,02/12/2021,357944,-710.37,Dennis Eagle Ltd
CO,E203,External Trading Accounts,Business Parks,Premises & Asset Management,2451,Premises related Expenditure,Water Services,Water And Sewerage Charges,16/12/2021,359369,-793.56,Castle Water Limited
CH,C211,Central Services to the Public,Management & Support Services,HR Services,4216,Supplies & Services,Services,External Training Consultants,23/12/2021,359351,416.67,Enham Trust
CO,B101,Central Services to the Public,Management & Support Services,Legal & Democratic,4237,Supplies & Services,Services,Legal Fees,08/12/2021,358069,416.67,Personal Data - Data Protection Act 1998
CO,B101,Central Services to the Public,Management & Support Services,Legal & Democratic,4237,Supplies & Services,Services,Legal Fees,08/12/2021,358070,416.67,Personal Data - Data Protection Act 1998
CO,E307,Planning & Development,Economic Development,Planning Policy & Economic Development ,4331,Supplies & Services,Grants & Subscriptions,Grants,09/12/2021,345999,500,Cambridge Vix Ltd
,L311,Cultural & Related,Culture & Heritage,Community and Leisure ,4401,Supplies & Services,Miscellaneous Expenses,Promotions / Special Events,09/12/2021,358836,500,Bloom
CO,E302,Planning & Development,Economic Development,Planning Policy & Economic Development ,4036,Supplies & Services,"Equipment, Furniture & Materials",Maintenance Of Tools,23/12/2021,359608,420,H2evidence
CO,R852,Central Services to the Public,Local Tax Collection,Revenues,1351,Employees,Indirect Employee Expenses,Temporary Staff,09/12/2021,358196,420.5,The Oyster Partnership Ltd
CO,P110,Planning & Development,Development Control,Planning & Building,4105,Supplies & Services,"Printing, Stationery & General Office Expenses",Photocopying Costs,02/12/2021,353402,422.89,Ricoh Uk Ltd
CO,W701,Environmental & Regulatory,Waste management,Environmental,3017,Transport Related Expenditure,Direct Transport Costs,Repair Materials,16/12/2021,358866,424.24,Dennis Eagle Ltd
PS,L251,Cultural & Related,Open Spaces,Community and Leisure ,2401,Premises related Expenditure,Energy Costs,Electricity,02/12/2021,357450,434.34,Hampshire County Council
CO,P110,Planning & Development,Development Control,Planning & Building,4111,Supplies & Services,"Printing, Stationery & General Office Expenses",Stationery,16/12/2021,358671,436.61,Lyreco Uk Ltd
CO,W400,Environmental & Regulatory,Waste & Recycling Management,Environmental,1352,Employees,Indirect Employee Expenses,Agency Staff - Waged Posts,09/12/2021,358881,441.79,Golden Orb Solutions
CO,W700,Environmental & Regulatory,Waste management,Environmental,3017,Transport Related Expenditure,Direct Transport Costs,Repair Materials,16/12/2021,358992,444.67,Dennis Eagle Ltd
CO,R852,Central Services to the Public,Local Tax Collection,Revenues,4121,Supplies & Services,"Printing, Stationery & General Office Expenses",Postage Costs,02/12/2021,358364,445.27,Royal Mail Group Ltd
CO,E511,Cultural & Related,Culture & Heritage,Premises & Asset Management,2402,Premises related Expenditure,Energy Costs,Gas,16/12/2021,359794,446.69,Totalenergies Gas & Power Ltd
EM,E102,Central Services to the Public,Management & Support Services,Premises & Asset Management,1251,Employees,Indirect Employee Expenses,Staff Professional Fees,02/12/2021,358709,539,Personal Data - Data Protection Act 1998
CO,L222,Cultural & Related,Open Spaces,Community and Leisure ,4031,Supplies & Services,"Equipment, Furniture & Materials",Purchase Equip + Materials,02/12/2021,356362,449.25,Tudor Environmental
CO,L170,Cultural & Related,Recreation & Sport,Community and Leisure ,2285,Premises related Expenditure,Grounds Maintenance Costs,Gm - Additional Works,23/12/2021,360267,455,Uk Active
CO,E001,Central Services to the Public,Management & Support Services,Premises & Asset Management,2031,Premises related Expenditure,Repairs Alterations & Maintenance of Buildings,General Repairs,23/12/2021,360106,460.01,Enerveo Ltd
CO,H250,Environmental & Regulatory,Regulatory Services,Housing and Environmental Health ,4240,Supplies & Services,Services,Professional Fees,02/12/2021,358171,460.51,Riverside Vets Ltd
CO,W700,Environmental & Regulatory,Waste management,Environmental,3017,Transport Related Expenditure,Direct Transport Costs,Repair Materials,16/12/2021,358428,463.41,Dennis Eagle Ltd
IN,2075,"Highways, Roads & Transport",Parking Services,Plan Pol & Transport,0021,Third Party Payments,Private contractors,Main Contractor Costs,23/12/2021,359185,560,Jwt Consultancy
PA,T610,"Highways, Roads & Transport",Parking Services,Plan Pol & Transport,4240,Supplies & Services,Services,Professional Fees,09/12/2021,358838,467.52,Wilks Head & Eve Llp
PS,L451,Planning & Development,Community Development,Community and Leisure ,4331,Supplies & Services,Grants & Subscriptions,Grants,16/12/2021,359764,566,Upper Clatford Parish Council
CO,E205,External Trading Accounts,Property Investments,Premises & Asset Management,2281,Premises related Expenditure,Grounds Maintenance Costs,Grounds Maintenance Contracts,16/12/2021,358401,473.19,Landmarks Sustainability Ltd
CO,L131,Cultural & Related,Recreation & Sport,Community and Leisure ,2901,Premises related Expenditure,Repairs Alterations & Maintenance of Buildings,Estates premises costs - AMP,16/12/2021,358547,475,Technical Surfaces Ltd
ST,T400,"Highways, Roads & Transport",Highways and roads - maintenance,Plan Pol & Transport,2311,Premises related Expenditure,Repairs Alterations & Maintenance of Buildings,Highways Repairs,02/12/2021,358136,585,Leamosaics
CO,W800,Central Services to the Public,Management & Support Services,Environmental,3025,Transport Related Expenditure,Direct Transport Costs,Oils,02/12/2021,358200,488.38,Fuchs Lubricants (Uk) Plc
CO,E532,Central Services to the Public,Management & Support Services,Premises & Asset Management,5420,Third Party Payments,Other Establishments,Contract Catering,16/12/2021,359602,521.95,Edwards And Ward Ltd
PS,T110,Planning & Development,Planning Policy,Plan Pol & Transport,4231,Supplies & Services,Services,Project Consultancy - Policy,23/12/2021,359789,491,Portsmouth City Council
CO,T610,"Highways, Roads & Transport",Parking Services,Plan Pol & Transport,2811,Premises related Expenditure,Repairs Alterations & Maintenance of Buildings,Planned Maintenance - Non Est,09/12/2021,358904,495,Healthy Buildings International
CO,W100,Cultural & Related,Open Spaces,Environmental,3017,Transport Related Expenditure,Direct Transport Costs,Repair Materials,23/12/2021,359878,497.8,A T H Machinery Ltd
CO,W700,Environmental & Regulatory,Waste management,Environmental,3023,Transport Related Expenditure,Direct Transport Costs,Tyres,09/12/2021,358411,507.27,Tructyre Ats
CO,L245,Cultural & Related,Open Spaces,Community and Leisure ,4031,Supplies & Services,"Equipment, Furniture & Materials",Purchase Equip + Materials,16/12/2021,358381,508.9,Tudor Environmental
CO,L311,Cultural & Related,Culture & Heritage,Community and Leisure ,4255,Supplies & Services,Miscellaneous Expenses,Security Services,16/12/2021,359732,519.12,Venture Security Management Ltd
CO,R852,Central Services to the Public,Local Tax Collection,Revenues,4121,Supplies & Services,"Printing, Stationery & General Office Expenses",Postage Costs,16/12/2021,358358,529.46,Royal Mail Group Ltd
CO,W100,Cultural & Related,Open Spaces,Environmental,4031,Supplies & Services,"Equipment, Furniture & Materials",Purchase Equip + Materials,09/12/2021,357917,529.5,Natural Stone & Timber T/A W H Berry & Son
CO,E205,External Trading Accounts,Property Investments,Premises & Asset Management,2314,Premises related Expenditure,Repairs Alterations & Maintenance of Buildings,Salt & Gritting,23/12/2021,360050,540,Outco Ltd
CO,W701,Environmental & Regulatory,Waste management,Environmental,1352,Employees,Indirect Employee Expenses,Agency Staff - Waged Posts,02/12/2021,357651,540.14,24-7 Staffing
,L391,Cultural & Related,Culture & Heritage,Community and Leisure ,4401,Supplies & Services,Miscellaneous Expenses,Promotions / Special Events,23/12/2021,360066,650,Chapel Arts Studio
CO,R852,Central Services to the Public,Local Tax Collection,Revenues,4213,Supplies & Services,Services,Training Courses,16/12/2021,359584,550,Nec Software Solutions Uk Limited
CO,E536,Central Services to the Public,Management & Support Services,Premises & Asset Management,2402,Premises related Expenditure,Energy Costs,Gas,16/12/2021,359798,554.71,Totalenergies Gas & Power Ltd
CO,R852,Central Services to the Public,Local Tax Collection,Revenues,4121,Supplies & Services,"Printing, Stationery & General Office Expenses",Postage Costs,02/12/2021,358362,580.28,Royal Mail Group Ltd
CO,F001,Central Services to the Public,Management & Support Services,Finance,4121,Supplies & Services,"Printing, Stationery & General Office Expenses",Postage Costs,09/12/2021,358386,581.35,Whistl Uk Ltd
CO,E541,Environmental & Regulatory,Regulatory Services,Premises & Asset Management,2451,Premises related Expenditure,Water Services,Water And Sewerage Charges,09/12/2021,358634,706.15,Castle Water Limited
CO,E601,Central Services to the Public,Management & Support Services,Premises & Asset Management,5406,Third Party Payments,Other Establishments,Private Contractors,23/12/2021,360116,590,Doorgear Limited
CO,L312,Cultural & Related,Culture & Heritage,Community and Leisure ,1800,Employees,Indirect Employee Expenses,Advertising Of Vacancies,09/12/2021,358177,595,Arts Professional Media Limited
CO,F001,Central Services to the Public,Management & Support Services,Finance,4121,Supplies & Services,"Printing, Stationery & General Office Expenses",Postage Costs,02/12/2021,357916,596.2,Twofold Limited
CO,W600,Environmental & Regulatory,Street Cleansing (not chargeable to Highways),Environmental,1352,Employees,Indirect Employee Expenses,Agency Staff - Waged Posts,02/12/2021,357651,596.62,24-7 Staffing
CO,B101,Central Services to the Public,Management & Support Services,Legal & Democratic,4237,Supplies & Services,Services,Legal Fees,09/12/2021,358841,600,Cornerstone Barristers
CO,P110,Planning & Development,Development Control,Planning & Building,4231,Supplies & Services,Services,Project Consultancy - Policy,23/12/2021,359737,600,Reading Agricultural Consultants Ltd
CO,R852,Central Services to the Public,Local Tax Collection,Revenues,4121,Supplies & Services,"Printing, Stationery & General Office Expenses",Postage Costs,02/12/2021,358366,601.21,Royal Mail Group Ltd
CO,W700,Environmental & Regulatory,Waste management,Environmental,3017,Transport Related Expenditure,Direct Transport Costs,Repair Materials,23/12/2021,358631,608.94,Dennis Eagle Ltd
CO,R852,Central Services to the Public,Local Tax Collection,Revenues,4121,Supplies & Services,"Printing, Stationery & General Office Expenses",Postage Costs,02/12/2021,358361,609.97,Royal Mail Group Ltd
CO,R850,Central Services to the Public,Local Tax Collection,Revenues,4121,Supplies & Services,"Printing, Stationery & General Office Expenses",Postage Costs,02/12/2021,358365,611.66,Royal Mail Group Ltd
CO,E305,Planning & Development,Economic Development,Planning Policy & Economic Development ,4331,Supplies & Services,Grants & Subscriptions,Grants,02/12/2021,358701,750,Sunnymead Financial Planning Ltd
CO,E305,Planning & Development,Economic Development,Planning Policy & Economic Development ,4331,Supplies & Services,Grants & Subscriptions,Grants,02/12/2021,358703,750,Papped Pilot Ltd
CO,E541,Environmental & Regulatory,Regulatory Services,Premises & Asset Management,4332,Supplies & Services,Grants & Subscriptions,Contributions,02/12/2021,357928,750,The Bridge
CO,P110,Planning & Development,Development Control,Planning & Building,4134,Supplies & Services,Communications & Computing,Software Maintenance,23/12/2021,359767,628.62,Idox Software Ltd
CO,W700,Environmental & Regulatory,Waste management,Environmental,4031,Supplies & Services,"Equipment, Furniture & Materials",Purchase Equip + Materials,02/12/2021,357740,639.9,Egbert H Taylor & Co Ltd
CO,2701,Central Services to the Public,Management & Support Services,Estates and Economic Development ,0021,Third Party Payments,Private contractors,Main Contractor Costs,16/12/2021,359590,640,Doorgear Limited
CO,W700,Environmental & Regulatory,Waste management,Environmental,1352,Employees,Indirect Employee Expenses,Agency Staff - Waged Posts,09/12/2021,358391,640,Golden Orb Solutions
CO,W700,Environmental & Regulatory,Waste management,Environmental,1352,Employees,Indirect Employee Expenses,Agency Staff - Waged Posts,09/12/2021,358881,640,Golden Orb Solutions
CO,W700,Environmental & Regulatory,Waste management,Environmental,1352,Employees,Indirect Employee Expenses,Agency Staff - Waged Posts,09/12/2021,358907,640,Golden Orb Solutions
CO,W701,Environmental & Regulatory,Waste management,Environmental,1352,Employees,Indirect Employee Expenses,Agency Staff - Waged Posts,02/12/2021,358128,646.38,24-7 Staffing
CO,H200,Environmental & Regulatory,Regulatory Services,Housing and Environmental Health ,4131,Supplies & Services,Communications & Computing,Computer Hardware,09/12/2021,358373,649.79,Xma Limited
CO,R852,Central Services to the Public,Local Tax Collection,Revenues,4131,Supplies & Services,Communications & Computing,Computer Hardware,09/12/2021,358373,649.79,Xma Limited
CO,W800,Central Services to the Public,Management & Support Services,Environmental,4131,Supplies & Services,Communications & Computing,Computer Hardware,09/12/2021,358419,650,Impact Tuning And Diagnostics
CO,W700,Environmental & Regulatory,Waste management,Environmental,1352,Employees,Indirect Employee Expenses,Agency Staff - Waged Posts,02/12/2021,356078,656.75,24-7 Staffing
CO,W100,Cultural & Related,Open Spaces,Environmental,4271,Supplies & Services,Miscellaneous Expenses,Waste Collection,09/12/2021,358371,664.08,Collard Enviromental Ltd
CO,E601,Central Services to the Public,Management & Support Services,Premises & Asset Management,5406,Third Party Payments,Other Establishments,Private Contractors,23/12/2021,360048,664.76,Yesss Electrical
CO,W800,Central Services to the Public,Management & Support Services,Environmental,1351,Employees,Indirect Employee Expenses,Temporary Staff,09/12/2021,358192,800,Parrish Transport Solutions Ltd
CO,W800,Central Services to the Public,Management & Support Services,Environmental,1351,Employees,Indirect Employee Expenses,Temporary Staff,09/12/2021,358855,800,Parrish Transport Solutions Ltd
CO,W800,Central Services to the Public,Management & Support Services,Environmental,1351,Employees,Indirect Employee Expenses,Temporary Staff,16/12/2021,359891,800,Parrish Transport Solutions Ltd
CO,W800,Central Services to the Public,Management & Support Services,Environmental,1351,Employees,Indirect Employee Expenses,Temporary Staff,23/12/2021,360060,800,Parrish Transport Solutions Ltd
CO,W800,Central Services to the Public,Management & Support Services,Environmental,1351,Employees,Indirect Employee Expenses,Temporary Staff,23/12/2021,360419,800,Parrish Transport Solutions Ltd
CO,L245,Cultural & Related,Open Spaces,Community and Leisure ,2285,Premises related Expenditure,Grounds Maintenance Costs,Gm - Additional Works,23/12/2021,358857,668.9,Grist Environmental
,2701,Central Services to the Public,Management & Support Services,Estates and Economic Development ,0021,Third Party Payments,Private contractors,Main Contractor Costs,16/12/2021,358402,671,Axis Fire And Security Services Ltd
PS,T700,"Highways, Roads & Transport",Public Transport,Plan Pol & Transport,6217,Third Party Payments,Transport Operators in Respect of Concessionary Fares,Voluntary Orgs Reimbursement,09/12/2021,359355,806,Romsey Good Neighbours
CO,E203,External Trading Accounts,Business Parks,Premises & Asset Management,4271,Supplies & Services,Miscellaneous Expenses,Waste Collection,09/12/2021,358889,672.16,Basingstoke Skip Hire & Sthrn Waste Mgt Ltd
CO,E534,Central Services to the Public,Management & Support Services,Premises & Asset Management,2402,Premises related Expenditure,Energy Costs,Gas,16/12/2021,359795,682.21,Totalenergies Gas & Power Ltd
CO,F001,Central Services to the Public,Management & Support Services,Finance,4121,Supplies & Services,"Printing, Stationery & General Office Expenses",Postage Costs,09/12/2021,358924,685.64,Pitney Bowes Finance Ltd
CO,B101,Central Services to the Public,Management & Support Services,Legal & Democratic,1800,Employees,Indirect Employee Expenses,Advertising Of Vacancies,02/12/2021,358393,695,Hb Editorial Services Ltd
CO,W100,Cultural & Related,Open Spaces,Environmental,4252,Supplies & Services,Miscellaneous Expenses,Medical Fees,09/12/2021,358998,834.2,Occupational Hygienist Services Ltd
PS,H310,Housing Services,Homelessness,Housing and Environmental Health ,6351,Supplies & Services,Miscellaneous Expenses,Bed & Breakfast,02/12/2021,357177,850,Andover Crisis & Support Centre
PS,H310,Housing Services,Homelessness,Housing and Environmental Health ,6351,Supplies & Services,Miscellaneous Expenses,Bed & Breakfast,23/12/2021,358999,850,Andover Crisis & Support Centre
CO,W100,Cultural & Related,Open Spaces,Environmental,4031,Supplies & Services,"Equipment, Furniture & Materials",Purchase Equip + Materials,09/12/2021,357959,711.42,Tudor Environmental
CO,E601,Central Services to the Public,Management & Support Services,Premises & Asset Management,5406,Third Party Payments,Other Establishments,Private Contractors,09/12/2021,358883,714.41,Corrigenda Ltd
CO,T100,Planning & Development,Planning Policy,Plan Pol & Transport,4381,Supplies & Services,Miscellaneous Expenses,Advertising,16/12/2021,358072,718.42,Newsquest Media Group Ltd
CO,W600,Environmental & Regulatory,Street Cleansing (not chargeable to Highways),Environmental,3017,Transport Related Expenditure,Direct Transport Costs,Repair Materials,16/12/2021,359324,725.22,Vale Engineering (York) Ltd
IN,L222,Cultural & Related,Open Spaces,Community and Leisure ,2901,Premises related Expenditure,Repairs Alterations & Maintenance of Buildings,Estates premises costs - AMP,23/12/2021,359185,880,Jwt Consultancy
CO,E700,Cultural & Related,Recreation & Sport,Premises & Asset Management,2401,Premises related Expenditure,Energy Costs,Electricity,23/12/2021,360429,735.09,British Gas Business   (Gas)  A/C 52464055
CO,L139,Cultural & Related,Recreation & Sport,Community and Leisure ,2285,Premises related Expenditure,Grounds Maintenance Costs,Gm - Additional Works,09/12/2021,357919,743.39,Natural Stone & Timber T/A W H Berry & Son
CO,H390,Environmental & Regulatory,Regulatory Services,Housing and Environmental Health ,4371,Supplies & Services,Grants & Subscriptions,Subscriptions,23/12/2021,359740,744.32,Ferret Information Systems Ltd
CO,W600,Environmental & Regulatory,Street Cleansing (not chargeable to Highways),Environmental,4031,Supplies & Services,"Equipment, Furniture & Materials",Purchase Equip + Materials,23/12/2021,359340,745,Imperial Polythene Products Ltd
CO,W800,Central Services to the Public,Management & Support Services,Environmental,4034,Supplies & Services,"Equipment, Furniture & Materials",Purchase Tools,16/12/2021,359569,749.52,South Coast Welding Supplies Ltd
CO,B101,Central Services to the Public,Management & Support Services,Legal & Democratic,4237,Supplies & Services,Services,Legal Fees,09/12/2021,358551,750,Cornerstone Barristers
PS,T700,"Highways, Roads & Transport",Public Transport,Plan Pol & Transport,6217,Third Party Payments,Transport Operators in Respect of Concessionary Fares,Voluntary Orgs Reimbursement,09/12/2021,359354,901,Romsey Good Neighbours
CO,I405,Central Services to the Public,Management & Support Services,IT,4043,Supplies & Services,"Equipment, Furniture & Materials",IT Supp and Serv AMP,09/12/2021,358543,760,Exampleit Ltd
CO,W700,Environmental & Regulatory,Waste management,Environmental,3017,Transport Related Expenditure,Direct Transport Costs,Repair Materials,16/12/2021,358893,766.5,Dennis Eagle Ltd
CO,E700,Cultural & Related,Recreation & Sport,Premises & Asset Management,2401,Premises related Expenditure,Energy Costs,Electricity,23/12/2021,360431,766.72,British Gas Business   (Gas)  A/C 52464055
CO,I302,Central Services to the Public,Management & Support Services,IT,4136,Supplies & Services,Communications & Computing,Communication Links,02/12/2021,358137,766.84,Zen Internet Limited
CO,W600,Environmental & Regulatory,Street Cleansing (not chargeable to Highways),Environmental,1352,Employees,Indirect Employee Expenses,Agency Staff - Waged Posts,09/12/2021,358657,783.52,24-7 Staffing
CO,E214,External Trading Accounts,Economic Development,Premises & Asset Management,4401,Supplies & Services,Miscellaneous Expenses,Promotions / Special Events,09/12/2021,358922,785,Breeze People Ltd
CO,R852,Central Services to the Public,Local Tax Collection,Revenues,4240,Supplies & Services,Services,Professional Fees,09/12/2021,358928,0,Ross & Roberts
CO,L139,Cultural & Related,Recreation & Sport,Community and Leisure ,2285,Premises related Expenditure,Grounds Maintenance Costs,Gm - Additional Works,09/12/2021,357023,790,Technical Surfaces Ltd
CO,W700,Environmental & Regulatory,Waste management,Environmental,4102,Supplies & Services,"Printing, Stationery & General Office Expenses",External Printing,23/12/2021,358944,798.3,Dura-Id Solutions Ltd
CH,H390,Environmental & Regulatory,Regulatory Services,Housing and Environmental Health ,1800,Employees,Indirect Employee Expenses,Advertising Of Vacancies,16/12/2021,359739,800,Chartered Inst. Of Environmental Health
CO,W400,Environmental & Regulatory,Waste & Recycling Management,Environmental,3017,Transport Related Expenditure,Direct Transport Costs,Repair Materials,16/12/2021,359321,808.76,Adams Morey Ltd
ST,E601,Central Services to the Public,Management & Support Services,Premises & Asset Management,5406,Third Party Payments,Other Establishments,Private Contractors,09/12/2021,359335,985,G J Roofing
CO,E102,Central Services to the Public,Management & Support Services,Premises & Asset Management,4240,Supplies & Services,Services,Professional Fees,09/12/2021,358976,825,Milestone Transport Planning Ltd
CO,R931,Housing Services,Housing Benefits ,Revenues,4134,Supplies & Services,Communications & Computing,Software Maintenance,16/12/2021,359585,825.01,Nec Software Solutions Uk Limited
CO,L389,Cultural & Related,Culture & Heritage,Community and Leisure ,4361,Supplies & Services,Miscellaneous Expenses,Booking Of Acts,16/12/2021,359618,1000,Torn Off Strips (Torn Entertainment)
,L451,Planning & Development,Community Development,Community and Leisure ,4331,Supplies & Services,Grants & Subscriptions,Grants,16/12/2021,359763,1000,Valley Park Parish Council
,L451,Planning & Development,Community Development,Community and Leisure ,4331,Supplies & Services,Grants & Subscriptions,Grants,23/12/2021,360458,1000,St Leonards Church
CO,P210,Planning & Development,Building Control,Planning & Building,1352,Employees,Indirect Employee Expenses,Agency Staff - Waged Posts,02/12/2021,358169,836.5,Brg Interim Solutions Ltd
CO,P210,Planning & Development,Building Control,Planning & Building,1352,Employees,Indirect Employee Expenses,Agency Staff - Waged Posts,23/12/2021,359896,846.66,Brg Interim Solutions Ltd
CO,P210,Planning & Development,Building Control,Planning & Building,1352,Employees,Indirect Employee Expenses,Agency Staff - Waged Posts,16/12/2021,359309,851.44,Brg Interim Solutions Ltd
CO,P210,Planning & Development,Building Control,Planning & Building,1352,Employees,Indirect Employee Expenses,Agency Staff - Waged Posts,02/12/2021,357665,856.82,Brg Interim Solutions Ltd
CO,I401,Central Services to the Public,Management & Support Services,IT,4141,Supplies & Services,Communications & Computing,Land Line Telephone Charges,16/12/2021,359344,858.65,Gamma
CO,E532,Central Services to the Public,Management & Support Services,Premises & Asset Management,4022,Supplies & Services,"Equipment, Furniture & Materials",Equipment Hire,09/12/2021,359179,862.5,Crown Water & Coffee
IN,L245,Cultural & Related,Open Spaces,Community and Leisure ,2286,Premises related Expenditure,Grounds Maintenance Costs,Snagging Works,16/12/2021,359579,870,Personal Data - Data Protection Act 1998
CO,P210,Planning & Development,Building Control,Planning & Building,1352,Employees,Indirect Employee Expenses,Agency Staff - Waged Posts,09/12/2021,358686,876.53,Brg Interim Solutions Ltd
CO,E601,Central Services to the Public,Management & Support Services,Premises & Asset Management,5406,Third Party Payments,Other Establishments,Private Contractors,23/12/2021,360037,880.51,Yesss Electrical
CO,F001,Central Services to the Public,Management & Support Services,Finance,4121,Supplies & Services,"Printing, Stationery & General Office Expenses",Postage Costs,02/12/2021,357964,883.73,Whistl Uk Ltd
PA,F179,Central Services to the Public,Management & Support Services,Finance,Y508,Supplies & Services,Miscellaneous Expenses,Vehicle insurance claims,23/12/2021,360424,1073.62,Weightmans Llp
CO,H220,Environmental & Regulatory,Regulatory Services,Housing and Environmental Health ,1352,Employees,Indirect Employee Expenses,Agency Staff - Waged Posts,23/12/2021,359575,924.3,The Oyster Partnership Ltd
CO,E601,Central Services to the Public,Management & Support Services,Premises & Asset Management,5406,Third Party Payments,Other Establishments,Private Contractors,09/12/2021,359334,925,Flow Mech Products Ltd
CO,L311,Cultural & Related,Culture & Heritage,Community and Leisure ,4401,Supplies & Services,Miscellaneous Expenses,Promotions / Special Events,08/12/2021,358687,929,Curious Creations Events Ltd
CO,E700,Cultural & Related,Recreation & Sport,Premises & Asset Management,2401,Premises related Expenditure,Energy Costs,Electricity,23/12/2021,360430,933.28,British Gas Business
ST,L389,Cultural & Related,Culture & Heritage,Community and Leisure ,4361,Supplies & Services,Miscellaneous Expenses,Booking Of Acts,09/12/2021,359364,1126.65,Blackbox Theatre Company
CO,L231,Environmental & Regulatory,"Cemetery, Cremation and Mortuary Services",Community and Leisure ,2901,Premises related Expenditure,Repairs Alterations & Maintenance of Buildings,Estates premises costs - AMP,16/12/2021,359806,950.4,D&G Builders
CO,P110,Planning & Development,Development Control,Planning & Building,1351,Employees,Indirect Employee Expenses,Temporary Staff,01/12/2021,358564,958.3,Technical Arboriculture
CO,W701,Environmental & Regulatory,Waste management,Environmental,1352,Employees,Indirect Employee Expenses,Agency Staff - Waged Posts,02/12/2021,356077,959.12,24-7 Staffing
CO,P110,Planning & Development,Development Control,Planning & Building,1351,Employees,Indirect Employee Expenses,Temporary Staff,02/12/2021,358377,960,G2 Recruitment Solutions
CO,E532,Central Services to the Public,Management & Support Services,Premises & Asset Management,2451,Premises related Expenditure,Water Services,Water And Sewerage Charges,16/12/2021,358934,1156.49,Castle Water Limited
CO,W100,Cultural & Related,Open Spaces,Environmental,4031,Supplies & Services,"Equipment, Furniture & Materials",Purchase Equip + Materials,09/12/2021,358396,980,Origin Amenity Solutions
CO,W400,Environmental & Regulatory,Waste & Recycling Management,Environmental,4371,Supplies & Services,Grants & Subscriptions,Subscriptions,16/12/2021,357649,990,Mallard Consultancy Ltd
CO,T610,"Highways, Roads & Transport",Parking Services,Plan Pol & Transport,4240,Supplies & Services,Services,Professional Fees,09/12/2021,358683,1011.91,Advam (Uk) Limited
CO,W600,Environmental & Regulatory,Street Cleansing (not chargeable to Highways),Environmental,1352,Employees,Indirect Employee Expenses,Agency Staff - Waged Posts,02/12/2021,358128,1018.79,24-7 Staffing
CO,E700,Cultural & Related,Recreation & Sport,Premises & Asset Management,2402,Premises related Expenditure,Energy Costs,Gas,16/12/2021,359790,1025.86,Totalenergies Gas & Power Ltd
CO,E601,Central Services to the Public,Management & Support Services,Premises & Asset Management,5406,Third Party Payments,Other Establishments,Private Contractors,23/12/2021,360117,1066.43,Andover Glass Works Ltd
CO,R852,Central Services to the Public,Local Tax Collection,Revenues,1351,Employees,Indirect Employee Expenses,Temporary Staff,16/12/2021,358871,1073,The Oyster Partnership Ltd
CO,E700,Cultural & Related,Recreation & Sport,Premises & Asset Management,2451,Premises related Expenditure,Water Services,Water And Sewerage Charges,09/12/2021,358647,1288.22,Castle Water Limited
CO,W600,Environmental & Regulatory,Street Cleansing (not chargeable to Highways),Environmental,4274,Supplies & Services,Miscellaneous Expenses,Hazardous / Fly Tipped Waste,09/12/2021,358370,1080,Bkp Waste & Recycling Ltd
CO,E532,Central Services to the Public,Management & Support Services,Premises & Asset Management,2703,Premises related Expenditure,Cleaning and domestic supplies,Window Cleaning,09/12/2021,358863,1082,Allclean Windows Limited
CO,W600,Environmental & Regulatory,Street Cleansing (not chargeable to Highways),Environmental,4031,Supplies & Services,"Equipment, Furniture & Materials",Purchase Equip + Materials,23/12/2021,359783,1084.2,Sweeperhire
PS,L381,Cultural & Related,Culture & Heritage,Community and Leisure ,2401,Premises related Expenditure,Energy Costs,Electricity,09/12/2021,358970,1098.79,Sparsholt College Hampshire
CO,W700,Environmental & Regulatory,Waste management,Environmental,4031,Supplies & Services,"Equipment, Furniture & Materials",Purchase Equip + Materials,16/12/2021,359350,1102,Gb Sport & Leisure Uk Ltd
IN,L223,Cultural & Related,Open Spaces,Community and Leisure ,2285,Premises related Expenditure,Grounds Maintenance Costs,Gm - Additional Works,23/12/2021,359578,1110,Personal Data - Data Protection Act 1998
CO,T610,"Highways, Roads & Transport",Parking Services,Plan Pol & Transport,4240,Supplies & Services,Services,Professional Fees,16/12/2021,359745,1130.59,Park Now Limited
CO,B221,Central Services to the Public,Elections,Legal & Democratic,4121,Supplies & Services,"Printing, Stationery & General Office Expenses",Postage Costs,23/12/2021,360136,1148.55,Financial Data Management Plc
CO,W700,Environmental & Regulatory,Waste management,Environmental,3017,Transport Related Expenditure,Direct Transport Costs,Repair Materials,02/12/2021,357979,1154.61,Dennis Eagle Ltd
CO,H125,Central Services to the Public,Management & Support Services,Housing and Environmental Health ,4213,Supplies & Services,Services,Training Courses,16/12/2021,359315,1155,Stroma Certification Limited
CO,L131,Cultural & Related,Recreation & Sport,Community and Leisure ,2811,Premises related Expenditure,Repairs Alterations & Maintenance of Buildings,Planned Maintenance - Non Est,09/12/2021,358688,1190.51,Xylem Water Solutions Ltd
CO,R852,Central Services to the Public,Local Tax Collection,Revenues,4121,Supplies & Services,"Printing, Stationery & General Office Expenses",Postage Costs,02/12/2021,358363,1208.27,Royal Mail Group Ltd
CO,P110,Planning & Development,Development Control,Planning & Building,4134,Supplies & Services,Communications & Computing,Software Maintenance,23/12/2021,359767,1257.24,Idox Software Ltd
CO,H220,Environmental & Regulatory,Regulatory Services,Housing and Environmental Health ,1352,Employees,Indirect Employee Expenses,Agency Staff - Waged Posts,23/12/2021,360262,1269.9,The Oyster Partnership Ltd
CO,T110,Planning & Development,Planning Policy,Plan Pol & Transport,4231,Supplies & Services,Services,Project Consultancy - Policy,23/12/2021,360097,1271.2,I-Transport Llp
CO,W100,Cultural & Related,Open Spaces,Environmental,4031,Supplies & Services,"Equipment, Furniture & Materials",Purchase Equip + Materials,23/12/2021,359337,1329.55,Hillier Nurseries Limited
CO,E517,Cultural & Related,Culture & Heritage,Premises & Asset Management,2021,Premises related Expenditure,Repairs Alterations & Maintenance of Buildings,Building Maint - Estates,23/12/2021,360045,1340.15,Wessex Response
CO,E601,Central Services to the Public,Management & Support Services,Premises & Asset Management,5406,Third Party Payments,Other Establishments,Private Contractors,23/12/2021,360113,1344.05,Places For People Leisure Ltd - Developments
CO,W821,Central Services to the Public,Management & Support Services,Environmental,4134,Supplies & Services,Communications & Computing,Software Maintenance,23/12/2021,360105,1350,Triscan Systems Ltd
CO,W800,Central Services to the Public,Management & Support Services,Environmental,4134,Supplies & Services,Communications & Computing,Software Maintenance,09/12/2021,358419,1390,Impact Tuning And Diagnostics
CO,R852,Central Services to the Public,Local Tax Collection,Revenues,4121,Supplies & Services,"Printing, Stationery & General Office Expenses",Postage Costs,02/12/2021,358365,1395.32,Royal Mail Group Ltd
CO,P110,Planning & Development,Development Control,Planning & Building,1351,Employees,Indirect Employee Expenses,Temporary Staff,02/12/2021,358125,1400,The Arboricultural Co Ltd
CO,P110,Planning & Development,Development Control,Planning & Building,1351,Employees,Indirect Employee Expenses,Temporary Staff,16/12/2021,358659,1400,The Arboricultural Co Ltd
CO,L389,Cultural & Related,Culture & Heritage,Community and Leisure ,4361,Supplies & Services,Miscellaneous Expenses,Booking Of Acts,23/12/2021,360260,1441.56,Zoots The Bankd
CO,E601,Central Services to the Public,Management & Support Services,Premises & Asset Management,5406,Third Party Payments,Other Establishments,Private Contractors,09/12/2021,358426,1450,Tls Fire & Security Llp
CO,W700,Environmental & Regulatory,Waste management,Environmental,3017,Transport Related Expenditure,Direct Transport Costs,Repair Materials,02/12/2021,357945,1477.56,Dennis Eagle Ltd
CO,P110,Planning & Development,Development Control,Planning & Building,1351,Employees,Indirect Employee Expenses,Temporary Staff,02/12/2021,358199,1480,G2 Recruitment Solutions
CO,P110,Planning & Development,Development Control,Planning & Building,1351,Employees,Indirect Employee Expenses,Temporary Staff,09/12/2021,358878,1480,G2 Recruitment Solutions
CO,P110,Planning & Development,Development Control,Planning & Building,1351,Employees,Indirect Employee Expenses,Temporary Staff,16/12/2021,359580,1480,G2 Recruitment Solutions
CO,P110,Planning & Development,Development Control,Planning & Building,1351,Employees,Indirect Employee Expenses,Temporary Staff,23/12/2021,360423,1480,G2 Recruitment Solutions
,2701,Central Services to the Public,Management & Support Services,Estates and Economic Development ,0021,Third Party Payments,Private contractors,Main Contractor Costs,23/12/2021,360042,1485,Axis Fire And Security Services Ltd
CO,W700,Environmental & Regulatory,Waste management,Environmental,1352,Employees,Indirect Employee Expenses,Agency Staff - Waged Posts,09/12/2021,358657,1493.67,24-7 Staffing
CO,P110,Planning & Development,Development Control,Planning & Building,4240,Supplies & Services,Services,Professional Fees,16/12/2021,358839,1500,Cornerstone Barristers
CO,R852,Central Services to the Public,Local Tax Collection,Revenues,4131,Supplies & Services,Communications & Computing,Computer Hardware,23/12/2021,359750,1541.58,Exampleit Ltd
CO,1651,Environmental & Regulatory,Regulatory Services,Housing and Environmental Health ,0091,Supplies & Services,Grants and subscriptions,Capital Grants,16/12/2021,359760,1850,Liftech Systems (Se) Ltd
CO,W100,Cultural & Related,Open Spaces,Environmental,3017,Transport Related Expenditure,Direct Transport Costs,Repair Materials,09/12/2021,358654,1544.08,Hunt Forest Group Ltd
CO,W100,Cultural & Related,Open Spaces,Environmental,4030,Supplies & Services,"Equipment, Furniture & Materials",Purchases for playgrounds,16/12/2021,358876,1909.7,Marcias Limited
PS,C210,Central Services to the Public,Management & Support Services,HR Services,4216,Supplies & Services,Services,External Training Consultants,02/12/2021,358545,1595,Ipp Education Ltd
CO,W700,Environmental & Regulatory,Waste management,Environmental,3017,Transport Related Expenditure,Direct Transport Costs,Repair Materials,16/12/2021,359736,1621.87,Adams Morey Ltd
CO,W700,Environmental & Regulatory,Waste management,Environmental,1352,Employees,Indirect Employee Expenses,Agency Staff - Waged Posts,02/12/2021,358128,1638.86,24-7 Staffing
ST,L389,Cultural & Related,Culture & Heritage,Community and Leisure ,4361,Supplies & Services,Miscellaneous Expenses,Booking Of Acts,09/12/2021,358629,1678.02,Barry Collings Entertainments
CO,I405,Central Services to the Public,Management & Support Services,IT,4043,Supplies & Services,"Equipment, Furniture & Materials",IT Supp and Serv AMP,02/12/2021,358061,1699.9,Pure Technology Group
CO,H220,Environmental & Regulatory,Regulatory Services,Housing and Environmental Health ,1352,Employees,Indirect Employee Expenses,Agency Staff - Waged Posts,16/12/2021,358872,1713.6,The Oyster Partnership Ltd
CO,P110,Planning & Development,Development Control,Planning & Building,4216,Supplies & Services,Services,External Training Consultants,09/12/2021,358550,2074.6,Mediation In The Workplace
CO,T610,"Highways, Roads & Transport",Parking Services,Plan Pol & Transport,9041,Transport Related Costs,Management Fee,Car Park charges,16/12/2021,359745,1740.59,Park Now Limited
IN,2231,Cultural & Related,Open Spaces,Community and Leisure ,0021,Third Party Payments,Private contractors,Main Contractor Costs,02/12/2021,358367,1825,Personal Data - Data Protection Act 1998
PA,F179,Central Services to the Public,Management & Support Services,Finance,Y508,Supplies & Services,Miscellaneous Expenses,Vehicle insurance claims,23/12/2021,360425,2217.91,Weightmans Llp
CO,I404,Central Services to the Public,Management & Support Services,IT,4134,Supplies & Services,Communications & Computing,Software Maintenance,16/12/2021,358981,1980,Phoenix Software Ltd
CO,E601,Central Services to the Public,Management & Support Services,Premises & Asset Management,5406,Third Party Payments,Other Establishments,Private Contractors,23/12/2021,360039,1990,Purbeck Civil Engineering Limited
CO,I301,Central Services to the Public,Management & Support Services,IT,4043,Supplies & Services,"Equipment, Furniture & Materials",IT Supp and Serv AMP,23/12/2021,359772,2000,Proact Uk Ltd
CO,P210,Planning & Development,Building Control,Planning & Building,1352,Employees,Indirect Employee Expenses,Agency Staff - Waged Posts,02/12/2021,357553,2026.51,Hays Specialist Recruitment
CO,P210,Planning & Development,Building Control,Planning & Building,1352,Employees,Indirect Employee Expenses,Agency Staff - Waged Posts,16/12/2021,358982,2029.74,Hays Specialist Recruitment
CO,E205,External Trading Accounts,Property Investments,Premises & Asset Management,2314,Premises related Expenditure,Repairs Alterations & Maintenance of Buildings,Salt & Gritting,23/12/2021,360049,2029.76,Outco Ltd
CO,P210,Planning & Development,Building Control,Planning & Building,1352,Employees,Indirect Employee Expenses,Agency Staff - Waged Posts,23/12/2021,360121,2047.74,Hays Specialist Recruitment
CO,P210,Planning & Development,Building Control,Planning & Building,1352,Employees,Indirect Employee Expenses,Agency Staff - Waged Posts,09/12/2021,358549,2061.23,Hays Specialist Recruitment
CO,P210,Planning & Development,Building Control,Planning & Building,1352,Employees,Indirect Employee Expenses,Agency Staff - Waged Posts,02/12/2021,358078,2068.44,Hays Specialist Recruitment
PS,L452,Environmental & Regulatory,Community Development,Community and Leisure ,4371,Supplies & Services,Grants & Subscriptions,Subscriptions,23/12/2021,358058,2494,Hampshire County Council
CO,W825,Central Services to the Public,Management & Support Services,Environmental,3027,Transport Related Expenditure,Direct Transport Costs,Red Derv,02/12/2021,357986,2386,Wp Group Limited
CO,B221,Central Services to the Public,Elections,Legal & Democratic,4102,Supplies & Services,"Printing, Stationery & General Office Expenses",External Printing,09/12/2021,358925,2099.93,Financial Data Management Plc
ST,L389,Cultural & Related,Culture & Heritage,Community and Leisure ,4361,Supplies & Services,Miscellaneous Expenses,Booking Of Acts,23/12/2021,360133,2129.24,Neil Sands Productions
CH,L453,Planning & Development,Community Development,Community and Leisure ,4331,Supplies & Services,Grants & Subscriptions,Grants,02/12/2021,358710,2576.58,The Freedom Centre
CO,W400,Environmental & Regulatory,Waste & Recycling Management,Environmental,4031,Supplies & Services,"Equipment, Furniture & Materials",Purchase Equip + Materials,09/12/2021,358552,2153.5,Vp-Av Ltd
CO,P210,Planning & Development,Building Control,Planning & Building,1352,Employees,Indirect Employee Expenses,Agency Staff - Waged Posts,23/12/2021,359768,2153.79,Hays Specialist Recruitment
CO,W100,Cultural & Related,Open Spaces,Environmental,4031,Supplies & Services,"Equipment, Furniture & Materials",Purchase Equip + Materials,09/12/2021,358398,2156,Origin Amenity Solutions
CO,1651,Environmental & Regulatory,Regulatory Services,Housing and Environmental Health ,0091,Supplies & Services,Grants and subscriptions,Capital Grants,16/12/2021,359758,2705,Bentley Mobility Services
CO,W100,Cultural & Related,Open Spaces,Environmental,4031,Supplies & Services,"Equipment, Furniture & Materials",Purchase Equip + Materials,23/12/2021,358975,2267,Fleet (Line Markers) Ltd
CO,L251,Cultural & Related,Open Spaces,Community and Leisure ,2901,Premises related Expenditure,Repairs Alterations & Maintenance of Buildings,Estates premises costs - AMP,23/12/2021,359894,2296.23,Stonbury Ltd
CO,E205,External Trading Accounts,Property Investments,Premises & Asset Management,4240,Supplies & Services,Services,Professional Fees,09/12/2021,358997,2300,Personal Data - Data Protection Act 1998
CO,I303,Central Services to the Public,Management & Support Services,IT,4132,Supplies & Services,Communications & Computing,Hardware Maintenance,02/12/2021,358083,2386.64,Dell Computer Corporation Ltd
CO,C210,Central Services to the Public,Management & Support Services,HR Services,5401,Third Party Payments,Other Local Authorities,Shared Service Contract Costs,09/12/2021,358430,2396.16,Mhr International Uk Ltd
CO,W700,Environmental & Regulatory,Waste management,Environmental,1352,Employees,Indirect Employee Expenses,Agency Staff - Waged Posts,02/12/2021,357651,2442.29,24-7 Staffing
CO,B101,Central Services to the Public,Management & Support Services,Legal & Democratic,4237,Supplies & Services,Services,Legal Fees,16/12/2021,358842,2500,Cornerstone Barristers
CO,B101,Central Services to the Public,Management & Support Services,Legal & Democratic,4237,Supplies & Services,Services,Legal Fees,16/12/2021,359615,2500,Cornerstone Barristers
CO,X163,Central Services,Corporate & Democratic Core,Corporate & Democratic,4231,Supplies & Services,Services,Project Consultancy - Policy,09/12/2021,359326,2500,Real Estate Strategies Ltd
CO,W700,Environmental & Regulatory,Waste management,Environmental,1352,Employees,Indirect Employee Expenses,Agency Staff - Waged Posts,02/12/2021,356077,2504.35,24-7 Staffing
CO,W100,Cultural & Related,Open Spaces,Environmental,4031,Supplies & Services,"Equipment, Furniture & Materials",Purchase Equip + Materials,09/12/2021,358397,2552,Origin Amenity Solutions
CO,E214,External Trading Accounts,Economic Development,Premises & Asset Management,4401,Supplies & Services,Miscellaneous Expenses,Promotions / Special Events,08/12/2021,358089,2616.5,Keycraft Ltd
CO,E532,Central Services to the Public,Management & Support Services,Premises & Asset Management,5420,Third Party Payments,Other Establishments,Contract Catering,16/12/2021,359603,2679.27,Edwards And Ward Ltd
CO,P110,Planning & Development,Development Control,Planning & Building,4231,Supplies & Services,Services,Project Consultancy - Policy,02/12/2021,358198,2800,Phillips Ecology
CO,H260,Environmental & Regulatory,Regulatory Services,Housing and Environmental Health ,4031,Supplies & Services,"Equipment, Furniture & Materials",Purchase Equip + Materials,02/12/2021,357191,2902.4,Killgerm Chemicals Ltd
CO,E601,Central Services to the Public,Management & Support Services,Premises & Asset Management,5406,Third Party Payments,Other Establishments,Private Contractors,23/12/2021,360043,2910.6,Bpc Energy Ltd
CO,I404,Central Services to the Public,Management & Support Services,IT,4134,Supplies & Services,Communications & Computing,Software Maintenance,23/12/2021,359595,3024.5,Softcat Ltd
CO,T110,Planning & Development,Planning Policy,Plan Pol & Transport,4231,Supplies & Services,Services,Project Consultancy - Policy,23/12/2021,360098,3123.5,I-Transport Llp
CO,E601,Central Services to the Public,Management & Support Services,Premises & Asset Management,5406,Third Party Payments,Other Establishments,Private Contractors,09/12/2021,358427,3125,Gibson & Co Ceilings
PS,T110,Planning & Development,Planning Policy,Plan Pol & Transport,4231,Supplies & Services,Services,Project Consultancy - Policy,23/12/2021,356067,4000,Hampshire County Council
CO,L243,Cultural & Related,Open Spaces,Community and Leisure ,1351,Employees,Indirect Employee Expenses,Temporary Staff,09/12/2021,358380,3500,The Arboricultural Co Ltd
CO,W821,Central Services to the Public,Management & Support Services,Environmental,3028,Transport Related Expenditure,Direct Transport Costs,Diesel,02/12/2021,357985,3511,Wp Group Limited
CO,L389,Cultural & Related,Culture & Heritage,Community and Leisure ,4361,Supplies & Services,Miscellaneous Expenses,Booking Of Acts,23/12/2021,360063,3533.59,Talon Music Ltd
CO,W100,Cultural & Related,Open Spaces,Environmental,5406,Third Party Payments,Other Establishments,Private Contractors,02/12/2021,358553,3685.5,Ams Contracting Ltd
CO,1651,Environmental & Regulatory,Regulatory Services,Housing and Environmental Health ,0091,Supplies & Services,Grants and subscriptions,Capital Grants,23/12/2021,360295,4453.18,Northfield Property Solutions Limited
CO,W821,Central Services to the Public,Management & Support Services,Environmental,3028,Transport Related Expenditure,Direct Transport Costs,Diesel,02/12/2021,358082,3853.76,Wp Group Limited
CO,F179,Central Services to the Public,Management & Support Services,Finance,4231,Supplies & Services,Services,Project Consultancy - Policy,09/12/2021,359314,3937.5,Link Asset Services
CO,W821,Central Services to the Public,Management & Support Services,Environmental,3028,Transport Related Expenditure,Direct Transport Costs,Diesel,16/12/2021,359741,3966.47,Wp Group Limited
CO,E214,External Trading Accounts,Economic Development,Premises & Asset Management,4401,Supplies & Services,Miscellaneous Expenses,Promotions / Special Events,16/12/2021,359883,4032.5,Breeze People Ltd
CO,L389,Cultural & Related,Culture & Heritage,Community and Leisure ,4361,Supplies & Services,Miscellaneous Expenses,Booking Of Acts,23/12/2021,360076,4128.63,Sweeney Entertainments
CO,2237,"Highways, Roads & Transport",Highways and roads - maintenance,Plan Pol & Transport,0021,Third Party Payments,Private contractors,Main Contractor Costs,09/12/2021,358990,4140.09,Enerveo Ltd
CO,L222,Cultural & Related,Open Spaces,Community and Leisure ,2901,Premises related Expenditure,Repairs Alterations & Maintenance of Buildings,Estates premises costs - AMP,23/12/2021,360257,4145.27,Rocon Contractors Ltd
CO,E304,Planning & Development,Economic Development,Planning Policy & Economic Development ,4213,Supplies & Services,Services,Training Courses,23/12/2021,358843,5000,Correct Contract Services
,H200,Environmental & Regulatory,Regulatory Services,Housing and Environmental Health ,1351,Employees,Indirect Employee Expenses,Temporary Staff,16/12/2021,358845,4191.33,Contractor Umbrella Ltd
CO,1651,Environmental & Regulatory,Regulatory Services,Housing and Environmental Health ,0091,Supplies & Services,Grants and subscriptions,Capital Grants,02/12/2021,358700,5105.04,Danson Developments Ltd
CO,1651,Environmental & Regulatory,Regulatory Services,Housing and Environmental Health ,0091,Supplies & Services,Grants and subscriptions,Capital Grants,16/12/2021,359759,5178.82,Acer Renovations Ltd
CO,W821,Central Services to the Public,Management & Support Services,Environmental,3028,Transport Related Expenditure,Direct Transport Costs,Diesel,09/12/2021,358652,4323.82,Wp Group Limited
CO,1651,Environmental & Regulatory,Regulatory Services,Housing and Environmental Health ,0091,Supplies & Services,Grants and subscriptions,Capital Grants,16/12/2021,359756,6500,Rs Building & Property Services
CO,H125,Central Services to the Public,Management & Support Services,Housing and Environmental Health ,4134,Supplies & Services,Communications & Computing,Software Maintenance,16/12/2021,358969,5444.84,Advanced Legal Solutions Ltd
CO,X163,Central Services,Corporate & Democratic Core,Corporate & Democratic,4240,Supplies & Services,Services,Professional Fees,16/12/2021,359787,5607.5,Hemingwaydesign
CO,L222,Cultural & Related,Open Spaces,Community and Leisure ,2901,Premises related Expenditure,Repairs Alterations & Maintenance of Buildings,Estates premises costs - AMP,09/12/2021,358875,5950,Cts Bridges Ltd
CO,1652,Environmental & Regulatory,Regulatory Services,Housing and Environmental Health ,0091,Supplies & Services,Grants and subscriptions,Capital Grants,16/12/2021,359757,7500,Rs Building & Property Services
CO,B221,Central Services to the Public,Elections,Legal & Democratic,4133,Supplies & Services,Communications & Computing,Computer Software,16/12/2021,359611,6625.99,Civica Election Services Ltd
CO,X200,Central Services,Corporate & Democratic Core,Corporate & Democratic,4133,Supplies & Services,Communications & Computing,Computer Software,09/12/2021,358920,6694.61,Caci Ltd
CO,I302,Central Services to the Public,Management & Support Services,IT,4136,Supplies & Services,Communications & Computing,Communication Links,16/12/2021,359381,6800,Virgin Media Payments Ltd
CO,1651,Environmental & Regulatory,Regulatory Services,Housing and Environmental Health ,0091,Supplies & Services,Grants and subscriptions,Capital Grants,09/12/2021,359360,8235.58,Column Construction Ltd
CO,2237,"Highways, Roads & Transport",Highways and roads - maintenance,Plan Pol & Transport,0021,Third Party Payments,Private contractors,Main Contractor Costs,09/12/2021,358989,7172.23,Enerveo Ltd
PS,T610,"Highways, Roads & Transport",Parking Services,Plan Pol & Transport,2401,Premises related Expenditure,Energy Costs,Electricity,02/12/2021,357450,7555.98,Hampshire County Council
CO,W821,Central Services to the Public,Management & Support Services,Environmental,3028,Transport Related Expenditure,Direct Transport Costs,Diesel,02/12/2021,357986,8067.01,Wp Group Limited
CO,I404,Central Services to the Public,Management & Support Services,IT,4134,Supplies & Services,Communications & Computing,Software Maintenance,23/12/2021,360122,8648.21,Richmond Systems
CO,L251,Cultural & Related,Open Spaces,Community and Leisure ,2901,Premises related Expenditure,Repairs Alterations & Maintenance of Buildings,Estates premises costs - AMP,09/12/2021,358378,9025,Hillier Nurseries Limited
CO,W400,Environmental & Regulatory,Waste & Recycling Management,Environmental,4031,Supplies & Services,"Equipment, Furniture & Materials",Purchase Equip + Materials,02/12/2021,357540,9051.51,Egbert H Taylor & Co Ltd
CO,R850,Central Services to the Public,Local Tax Collection,Revenues,4134,Supplies & Services,Communications & Computing,Software Maintenance,16/12/2021,358996,9342,Victoria Solutions Limited
CO,W821,Central Services to the Public,Management & Support Services,Environmental,3028,Transport Related Expenditure,Direct Transport Costs,Diesel,02/12/2021,358081,10420.86,Wp Group Limited
CO,W700,Environmental & Regulatory,Waste management,Environmental,4031,Supplies & Services,"Equipment, Furniture & Materials",Purchase Equip + Materials,23/12/2021,358132,10980,Mgb Plastics Ltd
CO,W701,Environmental & Regulatory,Waste management,Environmental,4031,Supplies & Services,"Equipment, Furniture & Materials",Purchase Equip + Materials,23/12/2021,358202,10980,Mgb Plastics Ltd
CO,W821,Central Services to the Public,Management & Support Services,Environmental,3028,Transport Related Expenditure,Direct Transport Costs,Diesel,16/12/2021,359619,11042.8,Wp Group Limited
CO,B221,Central Services to the Public,Elections,Legal & Democratic,4121,Supplies & Services,"Printing, Stationery & General Office Expenses",Postage Costs,09/12/2021,358926,11125.82,Financial Data Management Plc
CO,I405,Central Services to the Public,Management & Support Services,IT,4043,Supplies & Services,"Equipment, Furniture & Materials",IT Supp and Serv AMP,09/12/2021,358373,11696.22,Xma Limited
CO,I405,Central Services to the Public,Management & Support Services,IT,4043,Supplies & Services,"Equipment, Furniture & Materials",IT Supp and Serv AMP,16/12/2021,359349,11930,Exampleit Ltd
PS,X163,Central Services,Corporate & Democratic Core,Corporate & Democratic,4332,Supplies & Services,Grants & Subscriptions,Contributions,23/12/2021,354472,15000,Hampshire County Council
CO,L222,Cultural & Related,Open Spaces,Community and Leisure ,2901,Premises related Expenditure,Repairs Alterations & Maintenance of Buildings,Estates premises costs - AMP,23/12/2021,360256,16720,Rocon Contractors Ltd
CO,L222,Cultural & Related,Open Spaces,Community and Leisure ,2901,Premises related Expenditure,Repairs Alterations & Maintenance of Buildings,Estates premises costs - AMP,16/12/2021,359752,18720,Cts Bridges Ltd
CO,2701,Central Services to the Public,Management & Support Services,Estates and Economic Development ,0021,Third Party Payments,Private contractors,Main Contractor Costs,09/12/2021,358434,19697.79,Anchor Pipework Ltd
CO,2072,Cultural & Related,Culture & Heritage,Community and Leisure ,0021,Third Party Payments,Private contractors,Main Contractor Costs,16/12/2021,359743,20000,Circling The Square Ltd
CO,H390,Environmental & Regulatory,Regulatory Services,Housing and Environmental Health ,4240,Supplies & Services,Services,Professional Fees,09/12/2021,357973,22000,Rh Environmental Ltd
CO,I405,Central Services to the Public,Management & Support Services,IT,4043,Supplies & Services,"Equipment, Furniture & Materials",IT Supp and Serv AMP,23/12/2021,359751,22170,Exampleit Ltd
CO,2711,Central Services to the Public,Management & Support Services,Environmental,0071,Transport Related Expenditure,Direct Transport Costs,Vehicles and Plant,09/12/2021,358897,39250,Sparks Commercial Services Ltd
CO,2711,Central Services to the Public,Management & Support Services,Environmental,0071,Transport Related Expenditure,Direct Transport Costs,Vehicles and Plant,09/12/2021,358898,39250,Sparks Commercial Services Ltd
CO,2711,Central Services to the Public,Management & Support Services,Environmental,0071,Transport Related Expenditure,Direct Transport Costs,Vehicles and Plant,09/12/2021,358899,39250,Sparks Commercial Services Ltd
CO,E204,External Trading Accounts,Business Parks,Premises & Asset Management,4240,Supplies & Services,Services,Professional Fees,16/12/2021,359733,46390.29,Kier Ventures Ltd
PS,P110,Planning & Development,Development Control,Planning & Building,Z191,Third Party Payments,Commuted Sum,CIL Contribution,16/12/2021,359888,80590.74,Romsey Extra Parish Council (Cil Payments)
CO,1454,External Trading Accounts,Property Investments,Estates and Economic Development ,0021,Third Party Payments,Private contractors,Main Contractor Costs,09/12/2021,359332,742713.16,Kier Property Developments Ltd.
